[Event "Campeonato de España Universitario Relámpago"]
[Site "Zaragoza, Spain"]
[Date "2024.04.24"]
[Round "3.1"]
[White "Travesset Sagre, Jan"]
[Black "Lianes Garcia, Marcos"]
[Result "0-1"]
[TimeControl "3 min + 2 sg"]
[WhiteFideId "24538701"]
[BlackFideId "32060777"]
[WhiteElo "2084"]
[BlackElo "2382"]

1. d4 {[%clk 00:03:02]} {[%emt 00:00:02]} g6 {[%clk 00:03:03]} 2. c4 {[%clk
00:02:58]} {[%emt 00:00:05]} Bg7 {[%clk 00:03:04]} {[%emt 00:00:01]} 3. Nf3 c5
{[%emt 00:00:01]} 4. e4 {[%clk 00:02:53]} {[%emt 00:00:09]} d6 {[%clk
00:03:07]} {[%emt 00:00:01]} 5. dxc5 {[%clk 00:02:34]} {[%emt 00:00:21]} Qa5+
{[%clk 00:03:08]} {[%emt 00:00:01]} 6. Bd2 {[%clk 00:02:06]} {[%emt 00:00:29]}
Qxc5 {[%clk 00:03:08]} {[%emt 00:00:01]} 7. Nc3 {[%clk 00:02:08]} Nf6 {[%clk
00:03:07]} {[%emt 00:00:03]} 8. Be2 {[%clk 00:02:06]} {[%emt 00:00:04]} O-O
{[%clk 00:03:04]} {[%emt 00:00:05]} 9. O-O {[%clk 00:01:57]} {[%emt 00:00:11]}
Be6 {[%clk 00:03:00]} {[%emt 00:00:06]} 10. Rc1 {[%clk 00:01:52]} {[%emt
00:00:07]} Nbd7 {[%clk 00:02:58]} {[%emt 00:00:04]} 11. Be3 {[%clk 00:01:42]}
{[%emt 00:00:12]} Qa5 {[%clk 00:02:58]} {[%emt 00:00:02]} 12. Nd4 {[%clk
00:01:42]} {[%emt 00:00:01]} Rac8 {[%clk 00:02:44]} {[%emt 00:00:16]} 13. Nxe6
{[%clk 00:01:31]} {[%emt 00:00:13]} fxe6 {[%clk 00:02:45]} 14. b3 {[%clk
00:01:18]} {[%emt 00:00:15]} e5 {[%clk 00:02:33]} {[%emt 00:00:14]} 15. Bg4
{[%clk 00:01:05]} {[%emt 00:00:15]} Rcd8 {[%clk 00:01:45]} {[%emt 00:00:51]} 16.
Bh3 {[%clk 00:00:48]} {[%emt 00:00:19]} Kh8 {[%clk 00:01:25]} {[%emt 00:00:22]}
17. Qc2 {[%clk 00:00:34]} {[%emt 00:00:16]} Nc5 {[%clk 00:01:14]} {[%emt
00:00:12]} 18. f3 {[%clk 00:00:30]} {[%emt 00:00:07]} a6 {[%clk 00:01:04]}
{[%emt 00:00:13]} 19. Nd5 {[%clk 00:00:25]} {[%emt 00:00:07]} Nxd5 {[%clk
00:00:58]} {[%emt 00:00:08]} 20. cxd5 {[%clk 00:00:24]} {[%emt 00:00:02]} b6
{[%clk 00:00:43]} {[%emt 00:00:16]} 21. Rfd1 {[%clk 00:00:19]} {[%emt
00:00:07]} Qa3 {[%clk 00:00:42]} {[%emt 00:00:03]} 22. Rb1 {[%clk 00:00:12]}
{[%emt 00:00:09]} Ra8 {[%clk 00:00:21]} {[%emt 00:00:23]} 23. Bc1 {[%clk
00:00:13]} {[%emt 00:00:01]} Qb4 {[%clk 00:00:16]} {[%emt 00:00:08]} 24. a4
{[%clk 00:00:06]} {[%emt 00:00:09]} Nb7 {[%clk 00:00:07]} {[%emt 00:00:11]} 25.
Kh1 {[%clk 00:00:05]} {[%emt 00:00:03]} Qc5 {[%clk 00:00:06]} {[%emt 00:00:04]}
26. Rb2 {[%clk 00:00:03]} {[%emt 00:00:03]} a5 {[%clk 00:00:04]} {[%emt
00:00:04]} 27. Re1 {[%clk 00:00:03]} {[%emt 00:00:02]} Qxc2 {[%clk 00:00:05]}
{[%emt 00:00:02]} 28. Rxc2 {[%clk 00:00:04]} Nc5 {[%clk 00:00:06]} 29. Rc3
{[%clk 00:00:04]} {[%emt 00:00:02]} h5 {[%clk 00:00:07]} {[%emt 00:00:01]} 30.
Be3 {[%clk 00:00:03]} {[%emt 00:00:03]} Kh7 {[%clk 00:00:08]} {[%emt 00:00:01]}
31. Rec1 {[%clk 00:00:03]} {[%emt 00:00:02]} Rab8 {[%clk 00:00:09]} {[%emt
00:00:01]} 32. Kg1 {[%clk 00:00:03]} {[%emt 00:00:01]} Bh6 {[%clk 00:00:10]}
{[%emt 00:00:01]} 33. Kf2 {[%clk 00:00:03]} {[%emt 00:00:02]} Rb7 {[%clk
00:00:11]} {[%emt 00:00:02]} 34. Ke2 {[%clk 00:00:03]} {[%emt 00:00:02]} Bxe3
{[%clk 00:00:11]} {[%emt 00:00:02]} 35. Rxe3 {[%clk 00:00:03]} {[%emt
00:00:02]} b5 {[%clk 00:00:11]} {[%emt 00:00:02]} 36. axb5 {[%clk 00:00:03]}
{[%emt 00:00:02]} Rxb5 {[%clk 00:00:12]} 37. Rcc3 {[%clk 00:00:03]} {[%emt
00:00:02]} Rfb8 {[%clk 00:00:13]} 38. Kd2 {[%clk 00:00:03]} {[%emt 00:00:02]}
Nxb3+ {[%clk 00:00:13]} {[%emt 00:00:02]} 39. Ke2 {[%clk 00:00:04]} {[%emt
00:00:02]} Nc5 {[%clk 00:00:14]} {[%emt 00:00:01]} 40. Kf2 {[%clk 00:00:05]} a4
{[%clk 00:00:15]} {[%emt 00:00:02]} 41. Kg3 {[%clk 00:00:04]} {[%emt 00:00:03]}
Kh6 {[%clk 00:00:14]} {[%emt 00:00:03]} 42. Rc2 {[%clk 00:00:03]} {[%emt
00:00:02]} Rb2 {[%clk 00:00:13]} {[%emt 00:00:03]} 43. Ree2 {[%clk 00:00:03]}
{[%emt 00:00:02]} Rxc2 {[%clk 00:00:13]} {[%emt 00:00:02]} 44. Rxc2 {[%clk
00:00:04]} a3 {[%clk 00:00:15]} {[%emt 00:00:01]} 45. Be6 {[%clk 00:00:03]}
{[%emt 00:00:03]} Ra8 {[%clk 00:00:13]} {[%emt 00:00:04]} 46. Ra2 {[%clk
00:00:03]} {[%emt 00:00:02]} Nxe6 {[%clk 00:00:12]} {[%emt 00:00:03]} 47. dxe6
{[%clk 00:00:04]} {[%emt 00:00:01]} Kg5 {[%clk 00:00:14]} 0-1

[Event "Campeonato de España Universitario Relámpago"]
[Site "Zaragoza, Spain"]
[Date "2024.04.24"]
[Round "3.2"]
[White "Lopez Mulet, Inigo"]
[Black "Khudov, Oleksandr"]
[Result "1-0"]
[TimeControl "3 min + 2 sg"]
[WhiteFideId "22235620"]
[BlackFideId "14176432"]
[WhiteElo "2347"]
[BlackElo "2125"]

1. Nf3 {[%clk 00:03:02]} {[%emt 00:00:01]} d5 {[%clk 00:03:04]} 2. d4 {[%clk
00:02:57]} {[%emt 00:00:08]} Nf6 {[%clk 00:03:03]} {[%emt 00:00:03]} 3. e3
{[%clk 00:02:58]} Bf5 {[%clk 00:03:00]} {[%emt 00:00:05]} 4. Bd3 {[%clk
00:02:35]} {[%emt 00:00:25]} Bg6 {[%clk 00:03:01]} 5. O-O {[%clk 00:02:28]}
{[%emt 00:00:09]} e6 {[%clk 00:03:02]} {[%emt 00:00:02]} 6. b3 {[%clk
00:02:25]} {[%emt 00:00:05]} Nbd7 {[%clk 00:02:56]} {[%emt 00:00:08]} 7. Bb2
{[%clk 00:02:25]} {[%emt 00:00:02]} Bd6 {[%clk 00:02:57]} {[%emt 00:00:01]} 8.
Ne5 {[%clk 00:02:20]} {[%emt 00:00:07]} c6 {[%clk 00:02:52]} {[%emt 00:00:07]}
9. Nd2 {[%clk 00:02:16]} {[%emt 00:00:06]} Qc7 {[%clk 00:02:46]} {[%emt
00:00:08]} 10. f4 {[%clk 00:02:17]} {[%emt 00:00:01]} c5 {[%clk 00:02:36]}
{[%emt 00:00:13]} 11. Ndf3 {[%clk 00:01:46]} {[%emt 00:00:33]} cxd4 {[%clk
00:02:29]} {[%emt 00:00:09]} 12. exd4 {[%clk 00:01:35]} {[%emt 00:00:12]} O-O
{[%clk 00:02:26]} {[%emt 00:00:04]} 13. Qe2 {[%clk 00:01:09]} {[%emt 00:00:28]}
Rac8 {[%clk 00:02:25]} {[%emt 00:00:03]} 14. Rac1 {[%clk 00:01:08]} {[%emt
00:00:04]} Bxd3 {[%clk 00:02:21]} {[%emt 00:00:06]} 15. Qxd3 {[%clk 00:01:05]}
{[%emt 00:00:05]} Ne4 {[%clk 00:02:22]} 16. c4 {[%clk 00:00:51]} {[%emt
00:00:16]} Qd8 {[%clk 00:02:17]} {[%emt 00:00:07]} 17. c5 {[%clk 00:00:29]}
{[%emt 00:00:24]} Bb8 {[%clk 00:02:18]} {[%emt 00:00:01]} 18. b4 {[%clk
00:00:28]} {[%emt 00:00:03]} a6 {[%clk 00:02:03]} {[%emt 00:00:17]} 19. a4
{[%clk 00:00:29]} {[%emt 00:00:01]} f6 {[%clk 00:01:45]} {[%emt 00:00:19]} 20.
Nxd7 {[%clk 00:00:30]} {[%emt 00:00:02]} Qxd7 {[%clk 00:01:47]} 21. Nd2 {[%clk
00:00:24]} {[%emt 00:00:07]} Nxd2 {[%clk 00:01:35]} {[%emt 00:00:14]} 22. Qxd2
{[%clk 00:00:26]} {[%emt 00:00:01]} Qxa4 {[%clk 00:01:36]} 23. Rce1 {[%clk
00:00:26]} {[%emt 00:00:01]} Qd7 {[%clk 00:01:35]} {[%emt 00:00:03]} 24. Rf3
{[%clk 00:00:24]} {[%emt 00:00:04]} Rfe8 {[%clk 00:01:31]} {[%emt 00:00:06]} 25.
Qd3 {[%clk 00:00:23]} {[%emt 00:00:04]} Re7 {[%clk 00:01:27]} {[%emt 00:00:06]}
26. Bc1 {[%clk 00:00:19]} {[%emt 00:00:05]} Rce8 {[%clk 00:01:25]} {[%emt
00:00:04]} 27. Rh3 {[%clk 00:00:19]} {[%emt 00:00:02]} g6 {[%clk 00:01:17]}
{[%emt 00:00:10]} 28. Rf1 {[%clk 00:00:19]} {[%emt 00:00:03]} Qb5 {[%clk
00:01:05]} {[%emt 00:00:14]} 29. Qxb5 {[%clk 00:00:16]} {[%emt 00:00:05]} axb5
{[%clk 00:01:06]} {[%emt 00:00:01]} 30. Ra3 {[%clk 00:00:17]} e5 {[%clk
00:01:05]} {[%emt 00:00:03]} 31. fxe5 {[%clk 00:00:15]} {[%emt 00:00:04]} fxe5
{[%clk 00:01:06]} 32. dxe5 {[%clk 00:00:14]} {[%emt 00:00:04]} Bxe5 {[%clk
00:01:07]} {[%emt 00:00:01]} 33. Be3 {[%clk 00:00:09]} {[%emt 00:00:06]} Bxh2+
{[%clk 00:01:03]} {[%emt 00:00:06]} 34. Kxh2 {[%clk 00:00:11]} Rxe3 {[%clk
00:01:04]} {[%emt 00:00:01]} 35. Ra5 {[%clk 00:00:12]} d4 {[%clk 00:00:33]}
{[%emt 00:00:34]} 36. Rxb5 {[%clk 00:00:13]} {[%emt 00:00:01]} R8e7 {[%clk
00:00:34]} 37. Rb6 {[%clk 00:00:10]} {[%emt 00:00:06]} Rd7 {[%clk 00:00:34]}
{[%emt 00:00:03]} 38. Rd1 {[%clk 00:00:06]} {[%emt 00:00:06]} Rb3 {[%clk
00:00:29]} {[%emt 00:00:07]} 39. Rd6 {[%clk 00:00:07]} Rf7 {[%clk 00:00:24]}
{[%emt 00:00:07]} 40. R1xd4 {[%clk 00:00:08]} Rb2 {[%clk 00:00:19]} {[%emt
00:00:08]} 41. Rd8+ {[%clk 00:00:08]} {[%emt 00:00:02]} Rf8 {[%clk 00:00:19]}
{[%emt 00:00:02]} 42. R8d7 {[%clk 00:00:08]} {[%emt 00:00:03]} Rff2 {[%clk
00:00:17]} {[%emt 00:00:04]} 43. Rg4 {[%clk 00:00:06]} {[%emt 00:00:04]} Rf5
{[%clk 00:00:11]} {[%emt 00:00:08]} 44. Rxb7 {[%clk 00:00:06]} {[%emt
00:00:03]} Rxc5 {[%clk 00:00:10]} {[%emt 00:00:02]} 45. Rb8+ {[%clk 00:00:06]}
{[%emt 00:00:02]} Kg7 {[%emt 00:00:01]} 46. Rb7+ Kg8 {[%clk 00:00:11]} {[%emt
00:00:02]} 47. Rd4 {[%clk 00:00:06]} {[%emt 00:00:03]} Rc8 {[%clk 00:00:03]}
{[%emt 00:00:11]} 48. Rdd7 {[%clk 00:00:07]} {[%emt 00:00:01]} Re8 {[%clk
00:00:04]} {[%emt 00:00:01]} 49. Rxh7 {[%clk 00:00:07]} {[%emt 00:00:01]} Rc2
{[%clk 00:00:04]} {[%emt 00:00:02]} 50. Rhg7+ {[%emt 00:00:02]} Kf8 51. Rxg6
{[%clk 00:00:08]} Rb2 {[%clk 00:00:07]} 52. Rh6 {[%clk 00:00:09]} {[%emt
00:00:01]} Kg8 {[%clk 00:00:08]} 53. Rhh7 {[%clk 00:00:10]} {[%emt 00:00:01]}
Rb3 {[%clk 00:00:08]} {[%emt 00:00:01]} 54. b5 {[%clk 00:00:11]} {[%emt
00:00:01]} Rb2 {[%clk 00:00:09]} {[%emt 00:00:01]} 55. Rhg7+ {[%clk 00:00:12]}
{[%emt 00:00:01]} Kf8 {[%clk 00:00:11]} 56. Rbf7# {[%clk 00:00:13]} Ra8 {[%clk
00:03:02]} {[%emt 00:00:04]} 1-0

[Event "Campeonato de España Universitario Relámpago"]
[Site "Zaragoza, Spain"]
[Date "2024.04.24"]
[Round "3.3"]
[White "Garcia Escoda, Marc"]
[Black "Luque Saiz, Andres"]
[Result "0-1"]
[TimeControl "3 min + 2 sg"]
[WhiteFideId "24509655"]
[BlackFideId "24510793"]
[WhiteElo "2062"]
[BlackElo "2346"]

1. Nf3 {[%clk 00:03:03]} c5 {[%clk 00:03:03]} {[%emt 00:00:01]} 2. e4 {[%clk
00:03:03]} {[%emt 00:00:02]} a6 {[%clk 00:03:04]} {[%emt 00:00:01]} 3. c4
{[%clk 00:03:03]} Nc6 {[%clk 00:03:04]} {[%emt 00:00:03]} 4. Nc3 {[%clk
00:03:02]} {[%emt 00:00:03]} e5 {[%clk 00:02:23]} {[%emt 00:00:43]} 5. Be2
{[%clk 00:03:02]} {[%emt 00:00:02]} g6 {[%clk 00:02:15]} {[%emt 00:00:11]} 6.
O-O {[%clk 00:02:59]} {[%emt 00:00:03]} Bg7 {[%clk 00:02:16]} {[%emt 00:00:02]}
7. d3 {[%clk 00:03:01]} {[%emt 00:00:01]} d6 {[%clk 00:02:17]} 8. Bg5 {[%clk
00:02:58]} {[%emt 00:00:04]} f6 {[%clk 00:02:18]} {[%emt 00:00:01]} 9. Be3
{[%clk 00:02:59]} Nge7 {[%clk 00:02:10]} {[%emt 00:00:11]} 10. Nd5 {[%clk
00:02:51]} {[%emt 00:00:09]} O-O {[%clk 00:02:02]} {[%emt 00:00:10]} 11. a3
{[%clk 00:02:34]} {[%emt 00:00:20]} f5 {[%clk 00:01:30]} {[%emt 00:00:35]} 12.
Bg5 {[%clk 00:02:33]} {[%emt 00:00:02]} h6 {[%clk 00:01:29]} {[%emt 00:00:03]}
13. Bxe7 {[%clk 00:02:22]} {[%emt 00:00:13]} Nxe7 {[%clk 00:01:30]} {[%emt
00:00:01]} 14. b4 {[%clk 00:02:18]} {[%emt 00:00:05]} Nc6 {[%clk 00:01:16]}
{[%emt 00:00:16]} 15. bxc5 {[%clk 00:02:14]} {[%emt 00:00:06]} dxc5 {[%clk
00:01:17]} 16. Rb1 {[%clk 00:02:15]} Rb8 {[%clk 00:01:10]} {[%emt 00:00:09]} 17.
Rb6 {[%clk 00:01:56]} {[%emt 00:00:21]} Kh7 {[%clk 00:01:02]} {[%emt 00:00:10]}
18. Qb3 {[%clk 00:01:51]} {[%emt 00:00:07]} Nd4 {[%clk 00:00:33]} {[%emt
00:00:32]} 19. Nxd4 {[%clk 00:01:52]} {[%emt 00:00:02]} exd4 {[%clk 00:00:34]}
20. Rxa6 {[%clk 00:01:44]} {[%emt 00:00:10]} b5 {[%clk 00:00:23]} {[%emt
00:00:13]} 21. Ra7 {[%clk 00:01:37]} {[%emt 00:00:10]} Be6 {[%clk 00:00:16]}
{[%emt 00:00:09]} 22. cxb5 {[%clk 00:01:32]} {[%emt 00:00:06]} Bxd5 {[%clk
00:00:17]} {[%emt 00:00:02]} 23. Qxd5 {[%clk 00:00:35]} {[%emt 00:00:59]} Qxd5
{[%clk 00:00:17]} {[%emt 00:00:02]} 24. exd5 {[%clk 00:00:37]} Rxb5 {[%clk
00:00:19]} 25. Bf3 {[%clk 00:00:26]} {[%emt 00:00:12]} Rb3 {[%clk 00:00:17]}
{[%emt 00:00:04]} 26. Rd1 {[%clk 00:00:23]} {[%emt 00:00:04]} Rfb8 {[%clk
00:00:12]} {[%emt 00:00:07]} 27. h4 {[%clk 00:00:19]} {[%emt 00:00:06]} g5
{[%clk 00:00:12]} {[%emt 00:00:02]} 28. hxg5 {[%clk 00:00:20]} {[%emt
00:00:02]} hxg5 {[%clk 00:00:13]} 29. g4 {[%clk 00:00:16]} {[%emt 00:00:05]}
fxg4 {[%clk 00:00:15]} {[%emt 00:00:01]} 30. Bxg4 {[%clk 00:00:18]} Rd8 {[%clk
00:00:11]} {[%emt 00:00:05]} 31. Be6 {[%clk 00:00:16]} {[%emt 00:00:03]} Kg6
{[%clk 00:00:11]} {[%emt 00:00:03]} 32. Ra6 {[%clk 00:00:13]} {[%emt 00:00:06]}
Bf6 {[%clk 00:00:12]} 33. Rc1 {[%clk 00:00:08]} {[%emt 00:00:07]} Rxd3 {[%clk
00:00:09]} {[%emt 00:00:05]} 34. Rxc5 {[%clk 00:00:09]} Rd1+ {[%clk 00:00:10]}
35. Kg2 {[%clk 00:00:10]} d3 {[%clk 00:00:11]} {[%emt 00:00:01]} 36. Bg4 {[%clk
00:00:07]} {[%emt 00:00:05]} Rd2 {[%clk 00:00:08]} {[%emt 00:00:05]} 37. Rcc6
{[%clk 00:00:07]} {[%emt 00:00:01]} Rf8 {[%clk 00:00:09]} 38. Bf3 {[%clk
00:00:05]} {[%emt 00:00:04]} Kg7 {[%clk 00:00:07]} {[%emt 00:00:04]} 39. Ra7+
{[%clk 00:00:06]} {[%emt 00:00:01]} Kg8 {[%clk 00:00:06]} {[%emt 00:00:03]} 40.
Be4 {[%clk 00:00:04]} {[%emt 00:00:04]} Bd4 {[%clk 00:00:05]} {[%emt 00:00:04]}
41. Bh7+ {[%clk 00:00:03]} {[%emt 00:00:02]} Kh8 {[%clk 00:00:06]} {[%emt
00:00:01]} 42. Rh6 {[%clk 00:00:04]} {[%emt 00:00:01]} Rdxf2+ {[%clk 00:00:05]}
{[%emt 00:00:03]} 43. Kg3 {[%clk 00:00:04]} {[%emt 00:00:02]} Be5+ {[%clk
00:00:06]} {[%emt 00:00:01]} 44. Kg4 {[%clk 00:00:04]} {[%emt 00:00:02]} Rg2+
{[%clk 00:00:07]} {[%emt 00:00:01]} 45. Kh5 {[%clk 00:00:05]} Rh2+ {[%clk
00:00:08]} {[%emt 00:00:01]} 46. Kg6 {[%clk 00:00:06]} Rxh6+ {[%clk 00:00:09]}
{[%emt 00:00:01]} 47. Kxh6 {[%clk 00:00:07]} d2 {[%clk 00:00:07]} {[%emt
00:00:04]} 48. Bc2 {[%clk 00:00:08]} {[%emt 00:00:01]} Rf6+ {[%clk 00:00:06]}
{[%emt 00:00:02]} 49. Kxg5 {[%clk 00:00:08]} {[%emt 00:00:02]} Rf8 {[%clk
00:00:06]} {[%emt 00:00:03]} 50. Kg6 {[%clk 00:00:05]} {[%emt 00:00:05]} Rg8+
{[%clk 00:00:05]} {[%emt 00:00:02]} 51. Kf5 {[%clk 00:00:05]} {[%emt 00:00:02]}
Bc3 {[%clk 00:00:05]} {[%emt 00:00:02]} 52. Ke6 {[%clk 00:00:05]} {[%emt
00:00:02]} Rc8 {[%clk 00:00:04]} {[%emt 00:00:03]} 53. Bd1 {[%clk 00:00:04]}
{[%emt 00:00:04]} Bd4 {[%emt 00:00:02]} 54. d6 {[%emt 00:00:02]} Bxa7 {[%emt
00:00:01]} 0-1

[Event "Campeonato de España Universitario Relámpago"]
[Site "Zaragoza, Spain"]
[Date "2024.04.24"]
[Round "3.4"]
[White "Quispe Arteaga, Gabriel"]
[Black "Tadevosyan, Aspet"]
[Result "1-0"]
[TimeControl "3 min + 2 sg"]
[WhiteFideId "32059809"]
[BlackFideId "24526134"]
[WhiteElo "2304"]
[BlackElo "2092"]

1. b3 {[%clk 00:03:01]} {[%emt 00:00:02]} d5 {[%clk 00:03:02]} {[%emt
00:00:03]} 2. Bb2 {[%clk 00:03:02]} {[%emt 00:00:01]} c5 {[%clk 00:03:02]}
{[%emt 00:00:02]} 3. e3 {[%clk 00:03:03]} {[%emt 00:00:02]} f6 {[%clk
00:02:56]} {[%emt 00:00:07]} 4. d4 {[%clk 00:03:03]} {[%emt 00:00:02]} Nc6
{[%clk 00:02:52]} {[%emt 00:00:06]} 5. Nf3 {[%clk 00:03:03]} {[%emt 00:00:03]}
Bg4 {[%clk 00:02:41]} {[%emt 00:00:14]} 6. Be2 {[%clk 00:03:03]} {[%emt
00:00:01]} e6 {[%clk 00:02:34]} {[%emt 00:00:09]} 7. O-O {[%clk 00:03:04]}
{[%emt 00:00:02]} cxd4 {[%clk 00:02:27]} {[%emt 00:00:09]} 8. Nxd4 {[%clk
00:03:02]} {[%emt 00:00:04]} Bxe2 {[%clk 00:02:20]} {[%emt 00:00:10]} 9. Qxe2
{[%clk 00:03:01]} {[%emt 00:00:01]} Qd7 {[%clk 00:02:07]} {[%emt 00:00:16]} 10.
c4 {[%clk 00:03:02]} {[%emt 00:00:01]} Nxd4 {[%clk 00:02:01]} {[%emt 00:00:07]}
11. exd4 {[%clk 00:03:02]} {[%emt 00:00:02]} Be7 {[%clk 00:01:37]} {[%emt
00:00:26]} 12. Nc3 {[%clk 00:02:59]} {[%emt 00:00:05]} Nh6 {[%clk 00:01:29]}
{[%emt 00:00:10]} 13. cxd5 {[%clk 00:02:59]} {[%emt 00:00:02]} exd5 {[%clk
00:01:30]} {[%emt 00:00:01]} 14. Qh5+ {[%clk 00:03:00]} Nf7 {[%clk 00:01:27]}
{[%emt 00:00:04]} 15. Rfe1 {[%clk 00:02:38]} {[%emt 00:00:24]} O-O {[%clk
00:01:24]} {[%emt 00:00:05]} 16. Qxd5 {[%clk 00:02:38]} {[%emt 00:00:02]} Bd6
{[%clk 00:01:15]} {[%emt 00:00:11]} 17. Qe6 {[%clk 00:02:30]} {[%emt 00:00:10]}
Rad8 {[%clk 00:01:05]} {[%emt 00:00:12]} 18. Qxd7 {[%clk 00:02:19]} {[%emt
00:00:13]} Rxd7 {[%clk 00:01:07]} 19. Ne4 {[%clk 00:02:14]} {[%emt 00:00:06]}
Bb4 {[%clk 00:01:03]} {[%emt 00:00:06]} 20. Re2 {[%clk 00:02:08]} {[%emt
00:00:08]} Rc8 {[%clk 00:00:49]} {[%emt 00:00:16]} 21. g3 {[%clk 00:02:00]}
{[%emt 00:00:10]} Nd6 {[%clk 00:00:47]} {[%emt 00:00:04]} 22. Nxd6 {[%clk
00:01:54]} {[%emt 00:00:08]} Bxd6 {[%clk 00:00:48]} {[%emt 00:00:01]} 23. Kg2
{[%clk 00:01:50]} {[%emt 00:00:05]} Kf7 {[%clk 00:00:48]} {[%emt 00:00:02]} 24.
Rc1 {[%clk 00:01:47]} {[%emt 00:00:05]} Rdc7 {[%clk 00:00:40]} {[%emt
00:00:10]} 25. Rxc7+ {[%clk 00:01:47]} {[%emt 00:00:02]} Rxc7 {[%clk 00:00:41]}
26. Kf3 {[%clk 00:01:45]} {[%emt 00:00:03]} a6 {[%clk 00:00:38]} {[%emt
00:00:06]} 27. h3 {[%clk 00:01:44]} {[%emt 00:00:03]} Rc8 {[%clk 00:00:30]}
{[%emt 00:00:10]} 28. g4 {[%clk 00:01:44]} {[%emt 00:00:02]} h6 {[%clk
00:00:23]} {[%emt 00:00:09]} 29. d5 {[%clk 00:01:30]} {[%emt 00:00:16]} Rc5
{[%clk 00:00:18]} {[%emt 00:00:07]} 30. Ke4 {[%clk 00:01:31]} {[%emt 00:00:02]}
Rc8 {[%clk 00:00:19]} {[%emt 00:00:01]} 31. Kf3 {[%clk 00:01:19]} {[%emt
00:00:14]} Rc5 {[%clk 00:00:15]} {[%emt 00:00:05]} 32. Rd2 {[%clk 00:01:20]}
{[%emt 00:00:01]} Rc8 {[%clk 00:00:15]} {[%emt 00:00:02]} 33. Bd4 {[%clk
00:01:00]} {[%emt 00:00:22]} Rc1 {[%clk 00:00:12]} {[%emt 00:00:06]} 34. h4
{[%clk 00:00:54]} {[%emt 00:00:08]} Rh1 {[%clk 00:00:08]} {[%emt 00:00:06]} 35.
h5 {[%clk 00:00:55]} Rc1 {[%clk 00:00:09]} {[%emt 00:00:01]} 36. Be3 {[%clk
00:00:52]} {[%emt 00:00:05]} Ra1 {[%clk 00:00:05]} {[%emt 00:00:06]} 37. Rc2
{[%clk 00:00:51]} {[%emt 00:00:03]} Ke7 {[%clk 00:00:05]} {[%emt 00:00:01]} 38.
Ke4 {[%clk 00:00:50]} {[%emt 00:00:03]} Kd7 {[%clk 00:00:05]} {[%emt 00:00:02]}
39. Kf5 {[%clk 00:00:50]} {[%emt 00:00:02]} Rg1 {[%clk 00:00:04]} {[%emt
00:00:02]} 40. Rc4 {[%clk 00:00:46]} {[%emt 00:00:07]} Bf8 {[%clk 00:00:03]}
{[%emt 00:00:04]} 41. Bf4 {[%clk 00:00:43]} {[%emt 00:00:05]} Bd6 {[%clk
00:00:04]} 42. Bxd6 {[%clk 00:00:38]} {[%emt 00:00:07]} Kxd6 {[%clk 00:00:05]}
43. Kg6 {[%clk 00:00:40]} b5 {[%clk 00:00:07]} 44. Re4 {[%clk 00:00:15]} {[%emt
00:00:26]} Kxd5 {[%clk 00:00:07]} {[%emt 00:00:03]} 45. f3 {[%clk 00:00:16]} a5
{[%emt 00:00:05]} 46. Rf4 {[%clk 00:00:15]} {[%emt 00:00:01]} Rg2 {[%clk
00:00:06]} {[%emt 00:00:03]} 47. Kxg7 {[%clk 00:00:12]} {[%emt 00:00:05]} Rxa2
{[%clk 00:00:07]} {[%emt 00:00:01]} 48. Kxf6 {[%clk 00:00:06]} {[%emt
00:00:08]} Rb2 {[%clk 00:00:07]} {[%emt 00:00:02]} 49. g5 {[%clk 00:00:07]}
hxg5 {[%clk 00:00:07]} {[%emt 00:00:02]} 50. Kxg5 {[%clk 00:00:08]} {[%emt
00:00:01]} Rxb3 {[%clk 00:00:08]} {[%emt 00:00:01]} 51. h6 {[%clk 00:00:09]}
Rc3 {[%clk 00:00:07]} {[%emt 00:00:03]} 52. h7 {[%clk 00:00:10]} Rc8 {[%clk
00:00:08]} 53. Rf5+ {[%clk 00:00:11]} Kc4 {[%clk 00:00:09]} {[%emt 00:00:01]}
54. Rf7 {[%clk 00:00:12]} {[%emt 00:00:01]} a4 {[%clk 00:00:08]} {[%emt
00:00:03]} 55. Rc7+ {[%clk 00:00:13]} {[%emt 00:00:01]} Rxc7 {[%clk 00:00:08]}
{[%emt 00:00:02]} 56. h8=Q {[%clk 00:00:13]} {[%emt 00:00:02]} Rc5+ {[%clk
00:00:09]} {[%emt 00:00:02]} 57. Kf4 {[%clk 00:00:14]} Kb4 {[%clk 00:00:09]}
{[%emt 00:00:03]} 58. Qf8 {[%clk 00:00:15]} a3 {[%clk 00:00:10]} {[%emt
00:00:01]} 59. Ke4 {[%clk 00:00:10]} {[%emt 00:00:07]} a2 {[%clk 00:00:08]}
{[%emt 00:00:04]} 60. Qf6 {[%clk 00:00:05]} {[%emt 00:00:07]} Rc3 {[%clk
00:00:08]} {[%emt 00:00:02]} 61. Qd6+ {[%clk 00:00:05]} {[%emt 00:00:02]} Kb3
{[%clk 00:00:09]} {[%emt 00:00:01]} 62. Qd5+ {[%clk 00:00:06]} {[%emt
00:00:01]} Kc2 {[%clk 00:00:08]} {[%emt 00:00:03]} 63. Qxa2+ {[%clk 00:00:07]}
{[%emt 00:00:01]} 1-0